lending/lending_fUSD_20240507
["ID","MTS","AMOUNT","RATE_DAILY","PERIOD"]
[326556912,1715107852918,-500.0,0.00019452,2]
[326556913,1715107852928,-412.28710828,0.00019452,2]
[326556914,1715107852937,-500.0,0.00019452,2]
[326556915,1715107852947,-522.31,0.00019452,2]
[326556916,1715107852958,-889.15,0.00019452,2]
[326556917,1715107852968,-500.0,0.00019452,2]
[326556918,1715107852978,-500.0,0.00019452,2]
[326556919,1715107852988,-500.0,0.00019452,2]
[326556920,1715107852998,-500.0,0.00019452,2]
[326556921,1715107853007,-500.0,0.00019452,2]
[326556922,1715107853017,-500.0,0.00019452,2]
[326556923,1715107853027,-500.0,0.00019452,2]
[326556924,1715107853037,-1569.94,0.00019452,2]
[326556925,1715107853047,-500.0,0.00019452,2]
[326556926,1715107853057,-518.46,0.00019452,2]
[326556927,1715107853067,-1216.33,0.00019452,2]
[326556928,1715107853077,-500.0,0.00019452,2]
[326556929,1715107853087,-828.09,0.00019452,2]
[326556930,1715107853096,-1691.34,0.00019452,2]
[326556931,1715107853106,-500.0,0.00019452,2]
[326556932,1715107853115,-500.0,0.00019452,2]
[326556933,1715107853125,-882.27,0.00019452,2]
[326556934,1715107853135,-507.41,0.00019452,2]
[326556935,1715107853144,-1697.84,0.00019452,2]
[326556936,1715107853154,-524.22,0.00019452,2]
[326556937,1715107853163,-1154.24,0.00019452,2]
[326556938,1715107853173,-500.0,0.00019452,2]
[326556939,1715107853183,-500.0,0.00019452,2]
[326556940,1715107853192,-506.77138127,0.00019452,2]
[326556941,1715107853202,-500.0,0.00019452,2]
[326556942,1715107853212,-500.0,0.00019452,2]
[326556943,1715107853225,-500.0,0.00019452,2]
[326556944,1715107853235,-506.83496699,0.00019452,2]
[326556945,1715107853245,-500.0,0.00019452,2]
[326556946,1715107853255,-500.0,0.00019452,2]
[326556947,1715107853265,-500.0,0.00019452,2]
[326556948,1715107853274,-1020.65,0.00019452,2]
[326556949,1715107853284,-500.0,0.00019452,2]
[326556950,1715107853294,-588.63,0.00019452,2]
[326556951,1715107853305,-143.49462803,0.00019452,2]
[326556952,1715107853754,-356.50537197,0.00019452,2]
[326556953,1715107853764,-426.40462803,0.00019452,2]
[326556954,1715107854522,-213.17036143,0.00019178,2]
[326556955,1715107854531,-1107.10537197,0.00019452,2]
[326556956,1715107854541,-500.0,0.00019452,2]
[326556957,1715107854551,-653.0685714,0.00019452,2]
[326556958,1715107854562,-285.5184421,0.00019452,2]
[326556959,1715107854573,-513.2829865,0.00019452,2]
[326556960,1715107854582,-500.0,0.00019452,2]
[326556961,1715107854592,-566.13352849,0.00019452,2]
[326556962,1715107854604,-434.91647151,0.00019452,2]
[326556963,1715107854615,-500.0,0.00019452,2]
[326556964,1715107854624,-500.0,0.00019452,2]
[326556965,1715107854634,-500.0,0.00019452,2]
[326556966,1715107854644,-500.0,0.00019452,2]
[326556967,1715107854654,-500.0,0.00019452,2]
[326556968,1715107854663,-500.0,0.00019452,2]
[326556969,1715107854673,-500.0,0.00019452,2]
[326556970,1715107854682,-532.17,0.00019452,2]
[326556971,1715107854692,-500.0,0.00019452,2]
[326556972,1715107854701,-500.0,0.00019452,2]
[326556973,1715107854712,-2019.94,0.00019452,2]
[326556974,1715107854722,-1466.51,0.00019452,2]
[326556975,1715107854731,-500.0,0.00019452,2]
[326556976,1715107854741,-13.11352849,0.00019452,2]
[326556977,1715107854753,-486.88647151,0.00019452,2]
[326556978,1715107854763,-500.0,0.00019452,2]
[326556979,1715107854773,-500.0,0.00019452,2]
[326556980,1715107854782,-500.0,0.00019452,2]
[326556981,1715107854792,-413.07312838,0.00019452,2]
[326556982,1715107854804,-86.92687162,0.00019452,2]
[326556983,1715107854814,-500.0,0.00019452,2]
[326556984,1715107854823,-500.0,0.00019452,2]
[326556985,1715107854833,-201.31996156,0.00019452,2]
[326556986,1715107854844,-756.64003844,0.00019452,2]
[326556987,1715107854854,-532.88,0.00019452,2]
[326556988,1715107854863,-1.97508089,0.00019452,2]
[326556989,1715107854874,-498.02491911,0.00019452,2]
[326556990,1715107854884,-312.97508089,0.00019452,2]
[326556991,1715107854896,-187.02491911,0.00019452,2]
[326556992,1715107854905,-707.17,0.00019452,2]
[326556993,1715107854915,-223.46505563,0.00019452,2]
[326556994,1715107854926,-1067.32494437,0.00019452,2]
[326556995,1715107854936,-500.0,0.00019452,2]
[326556996,1715107854945,-469.85667563,0.00019452,2]
[326556997,1715107854958,-269.99332437,0.00019452,2]
[326556998,1715107854967,-500.0,0.00019452,2]
[326556999,1715107854977,-1201.96,0.00019452,2]
[326557000,1715107854987,-500.0,0.00019452,2]
[326557001,1715107854996,-485.26161402,0.00019452,2]
[326557002,1715107855094,-14.73838598,0.00019452,2]
[326557003,1715107855103,-500.0,0.00019452,2]
[326557004,1715107855113,-1225.0,0.00019452,2]
[326557005,1715107855123,-195.7370401,0.00019452,2]
[326557006,1715107855133,-537.6,0.00019452,2]
[326557007,1715107855142,-690.22,0.00019452,2]
[326557008,1715107855152,-933.5,0.00019452,2]
[326557009,1715107855161,-731.13,0.00019452,2]
[326557010,1715107855171,-853.51,0.00019452,2]
[326557011,1715107855181,-500.0,0.00019452,2]
[326557012,1715107855190,-500.0,0.00019452,2]
[326557013,1715107855200,-500.0,0.00019452,2]
[326557014,1715107855211,-500.0,0.00019452,2]
[326557015,1715107855226,-222.54016749,0.00019452,2]
[326557016,1715107855235,-731.9,0.00019452,2]
[326557017,1715107855245,-500.0,0.00019452,2]
[326557018,1715107855255,-500.0,0.00019452,2]
[326557019,1715107855266,-713.16,0.00019452,2]
[326557020,1715107855276,-645.69,0.00019452,2]
[326557021,1715107855286,-648.06,0.00019452,2]
[326557022,1715107855295,-500.0,0.00019452,2]
[326557023,1715107855307,-670.83,0.00019452,2]
[326557024,1715107855319,-500.0,0.00019452,2]
[326557025,1715107855330,-500.0,0.00019452,2]
[326557026,1715107855342,-500.0,0.00019452,2]
[326557027,1715107855352,-500.0,0.00019452,2]
[326557028,1715107855362,-500.0,0.00019452,2]
[326557029,1715107855372,-639.14,0.00019452,2]
[326557030,1715107855381,-500.0,0.00019452,2]
[326557031,1715107855392,-1402.97,0.00019452,2]
[326557032,1715107855402,-500.0,0.00019452,2]
[326557033,1715107855412,-500.0,0.00019452,2]
[326557034,1715107855422,-500.0,0.00019452,2]
[326557035,1715107855432,-1139.05,0.00019452,2]
[326557036,1715107855441,-500.0,0.00019452,2]
[326557037,1715107855451,-638.23,0.00019452,2]
[326557038,1715107855462,-500.0,0.00019452,2]
[326557039,1715107855472,-500.0,0.00019452,2]
[326557040,1715107855482,-861.52,0.00019452,2]
[326557041,1715107855491,-338.97204384,0.00019452,2]
[326557042,1715107855501,-903.72,0.00019452,2]
[326557043,1715107855510,-640.75,0.00019452,2]
[326557044,1715107855520,-500.0,0.00019452,2]
[326557045,1715107855530,-532.13,0.00019452,2]
[326557046,1715107855540,-506.52512895,0.00019452,2]
[326557047,1715107855550,-1114.16,0.00019452,2]
[326557048,1715107855559,-500.0,0.00019452,2]
[326557049,1715107855570,-500.0,0.00019452,2]
[326557050,1715107855579,-605.45,0.00019452,2]
[326557051,1715107855589,-517.04,0.00019452,2]
[326557052,1715107855599,-813.9,0.00019452,2]
[326557053,1715107855608,-625.85,0.00019452,2]
[326557054,1715107855618,-545.36,0.00019452,2]
[326557055,1715107855628,-790.08,0.00019452,2]
[326557056,1715107855637,-500.0,0.00019452,2]
[326557057,1715107855649,-656.83,0.00019452,2]
[326557058,1715107855658,-500.0,0.00019452,2]
[326557059,1715107855668,-1319.91,0.00019452,2]
[326557060,1715107855677,-578.88,0.00019452,2]
[326557061,1715107855687,-500.0,0.00019452,2]
[326557062,1715107855697,-1675.76,0.00019452,2]
[326557063,1715107855708,-653.08,0.00019452,2]
[326557064,1715107855717,-1228.9,0.00019452,2]
[326557065,1715107855727,-500.0,0.00019452,2]
[326557066,1715107855736,-500.0,0.00019452,2]
[326557067,1715107855746,-500.0,0.00019452,2]
[326557068,1715107855756,-500.0,0.00019452,2]
[326557069,1715107855766,-500.0,0.00019452,2]
[326557070,1715107855775,-669.26,0.00019452,2]
[326557071,1715107855786,-1318.01,0.00019452,2]
[326557072,1715107855797,-1646.45,0.00019452,2]
[326557073,1715107855806,-500.0,0.00019452,2]
[326557074,1715107855816,-500.0,0.00019452,2]
[326557075,1715107855825,-500.0,0.00019452,2]
[326557076,1715107855835,-500.0,0.00019452,2]
[326557077,1715107855845,-1117.46,0.00019452,2]
[326557078,1715107855855,-3257.84,0.00019452,2]
[326557079,1715107855865,-595.9,0.00019452,2]
[326557080,1715107855875,-500.0,0.00019452,2]
[326557081,1715107855884,-576.18,0.00019452,2]
[326557082,1715107855894,-500.0,0.00019452,2]
[326557083,1715107855903,-500.0,0.00019452,2]
[326557084,1715107855913,-1028.83,0.00019452,2]
[326557085,1715107855922,-500.0,0.00019452,2]
[326557086,1715107855932,-1281.52,0.00019452,2]
[326557087,1715107855943,-500.0,0.00019452,2]
[326557088,1715107855952,-1075.27,0.00019452,2]
[326557089,1715107855963,-1468.71,0.00019452,2]
[326557090,1715107855973,-1096.09,0.00019452,2]
[326557091,1715107855982,-4038.92,0.00019452,2]
[326557092,1715107855992,-619.21,0.00019452,2]
[326557093,1715107856001,-790.94,0.00019452,2]
[326557094,1715107856011,-500.0,0.00019452,2]
[326557095,1715107856020,-4660.19,0.00019452,2]
[326557096,1715107856030,-1289.37,0.00019452,2]
[326557097,1715107856039,-500.0,0.00019452,2]
[326557098,1715107856049,-500.0,0.00019452,2]
[326557099,1715107856059,-4159.75,0.00019452,2]
[326557100,1715107856069,-1261.39,0.00019452,2]
[326557101,1715107856078,-1402.77,0.00019452,2]
[326557102,1715107856089,-1070.83,0.00019452,2]
[326557103,1715107856099,-500.0,0.00019452,2]
[326557104,1715107856108,-553.86,0.00019452,2]
[326557105,1715107856118,-1149.67,0.00019452,2]
[326557106,1715107856128,-748.92,0.00019452,2]
[326557107,1715107856138,-500.0,0.00019452,2]
[326557108,1715107856147,-500.0,0.00019452,2]
[326557109,1715107856157,-854.47,0.00019452,2]
[326557110,1715107856166,-1732.14,0.00019452,2]
[326557111,1715107856176,-753.45,0.00019452,2]
[326557112,1715107856186,-584.29,0.00019452,2]
[326557113,1715107856195,-500.0,0.00019452,2]
[326557114,1715107856206,-958.22,0.00019452,2]
[326557115,1715107856217,-500.0,0.00019452,2]
[326557116,1715107856230,-500.0,0.00019452,2]
[326557117,1715107856240,-1496.87,0.00019452,2]
[326557118,1715107856250,-1669.19,0.00019452,2]
[326557119,1715107856260,-500.0,0.00019452,2]
[326557120,1715107856272,-1778.04,0.00019452,2]
[326557121,1715107856281,-10882.77,0.00019452,2]
[326557122,1715107856291,-539.02,0.00019452,2]
[326557123,1715107856301,-500.0,0.00019452,2]
[326557124,1715107856311,-500.0,0.00019452,2]
[326557125,1715107856325,-500.0,0.00019452,2]
[326557126,1715107856335,-3293.15,0.00019452,2]
[326557127,1715107856344,-500.0,0.00019452,2]
[326557128,1715107856354,-2519.37,0.00019452,2]
[326557129,1715107856364,-500.0,0.00019452,2]
[326557130,1715107856373,-500.0,0.00019452,2]
[326557131,1715107856383,-523.67,0.00019452,2]
[326557132,1715107856392,-500.0,0.00019452,2]
[326557133,1715107856402,-1326.96,0.00019452,2]
[326557134,1715107856411,-500.0,0.00019452,2]
[326557135,1715107856421,-500.0,0.00019452,2]
[326557136,1715107856430,-500.0,0.00019452,2]
[326557137,1715107856440,-500.0,0.00019452,2]
[326557138,1715107856449,-562.46,0.00019452,2]
[326557139,1715107856459,-600.68,0.00019452,2]
[326557140,1715107856469,-500.0,0.00019452,2]
[326557141,1715107856478,-4366.01,0.00019452,2]
[326557142,1715107856487,-500.0,0.00019452,2]
[326557143,1715107856497,-500.0,0.00019452,2]
[326557144,1715107856506,-500.0,0.00019452,2]
[326557145,1715107856516,-1219.66,0.00019452,2]
[326557146,1715107856525,-790.34,0.00019452,2]
[326557147,1715107856534,-1495.94,0.00019452,2]
[326557148,1715107856544,-1794.08,0.00019452,2]
[326557149,1715107856554,-500.0,0.00019452,2]
[326557150,1715107856563,-581.32,0.00019452,2]
[326557151,1715107856572,-3638.04,0.00019452,2]
[326557152,1715107856581,-1737.14,0.00019452,2]
[326557153,1715107856591,-885.29,0.00019452,2]
[326557154,1715107856600,-500.0,0.00019452,2]
[326557155,1715107856610,-500.0,0.00019452,2]
[326557156,1715107856619,-653.88,0.00019452,2]
[326557157,1715107856628,-5716.43,0.00019452,2]
[326557158,1715107856638,-1451.38,0.00019452,2]
[326557159,1715107856647,-630.49,0.00019452,2]
[326557160,1715107856657,-2029.5,0.00019452,2]
[326557161,1715107856667,-500.0,0.00019452,2]
[326557162,1715107856676,-813.04,0.00019452,2]
[326557163,1715107856685,-500.0,0.00019452,2]
[326557164,1715107856695,-500.0,0.00019452,2]
[326557165,1715107856707,-500.0,0.00019452,2]
[326557166,1715107856717,-500.0,0.00019452,2]
[326557167,1715107856728,-500.0,0.00019452,2]
[326557168,1715107856738,-500.0,0.00019452,2]
[326557169,1715107856748,-598.1,0.00019452,2]
[326557170,1715107856758,-500.0,0.00019452,2]
[326557171,1715107856768,-500.0,0.00019452,2]
[326557172,1715107856778,-1259.97,0.00019452,2]
[326557173,1715107856788,-792.67,0.00019452,2]
[326557174,1715107856797,-500.0,0.00019452,2]
[326557175,1715107856807,-500.0,0.00019452,2]
[326557176,1715107856817,-500.0,0.00019452,2]
[326557177,1715107856827,-2135.48,0.00019452,2]
[326557178,1715107856837,-500.0,0.00019452,2]
[326557179,1715107856847,-500.0,0.00019452,2]
[326557180,1715107856856,-500.0,0.00019452,2]
[326557181,1715107856867,-2805.75,0.00019452,2]
[326557182,1715107856879,-3484.98,0.00019452,2]
[326557183,1715107856889,-787.22,0.00019452,2]
[326557184,1715107856898,-500.0,0.00019452,2]
[326557185,1715107856908,-500.0,0.00019452,2]
[326557186,1715107856918,-500.0,0.00019452,2]
[326557187,1715107856928,-24209.99,0.00019452,2]
[326557188,1715107856939,-502.91,0.00019452,2]
[326557189,1715107856949,-500.0,0.00019452,2]
[326557190,1715107856960,-549.16,0.00019452,2]
[326557191,1715107856970,-500.0,0.00019452,2]
[326557192,1715107856980,-580.27911268,0.00019452,2]
[326557193,1715107856989,-607.38,0.00019452,2]
[326557194,1715107856999,-500.0,0.00019452,2]
[326557195,1715107857009,-594.55,0.00019452,2]
[326557196,1715107857018,-926.91,0.00019452,2]
[326557197,1715107857028,-500.0,0.00019452,2]
[326557198,1715107857038,-1289.91,0.00019452,2]
[326557199,1715107857048,-1002.03,0.00019452,2]
[326557200,1715107857057,-1302.76,0.00019452,2]
[326557201,1715107857067,-500.0,0.00019452,2]
[326557202,1715107857078,-500.0,0.00019452,2]
[326557203,1715107857087,-500.0,0.00019452,2]
[326557204,1715107857097,-500.0,0.00019452,2]
[326557205,1715107857107,-500.0,0.00019452,2]
[326557206,1715107857117,-500.0,0.00019452,2]
[326557207,1715107857127,-500.0,0.00019452,2]
[326557208,1715107857137,-500.0,0.00019452,2]
[326557209,1715107857146,-500.0,0.00019452,2]
[326557210,1715107857156,-885.51,0.00019452,2]
[326557211,1715107857166,-1018.38,0.00019452,2]
[326557212,1715107857176,-500.0,0.00019452,2]
[326557213,1715107857185,-1135.76,0.00019452,2]
[326557214,1715107857196,-500.0,0.00019452,2]
[326557215,1715107857206,-500.0,0.00019452,2]
[326557216,1715107857217,-500.0,0.00019452,2]
[326557217,1715107857230,-500.0,0.00019452,2]
[326557218,1715107857239,-500.0,0.00019452,2]
[326557219,1715107857250,-525.43,0.00019452,2]
[326557220,1715107857261,-1108.21,0.00019452,2]
[326557221,1715107857271,-500.0,0.00019452,2]
[326557222,1715107857281,-500.0,0.00019452,2]
[326557223,1715107857291,-500.0,0.00019452,2]
[326557224,1715107857302,-1569.25,0.00019452,2]
[326557225,1715107857313,-1231.36,0.00019452,2]
[326557226,1715107857324,-500.0,0.00019452,2]
[326557227,1715107857335,-500.0,0.00019452,2]
[326557228,1715107857345,-1073.59,0.00019452,2]
[326557229,1715107857355,-500.0,0.00019452,2]
[326557230,1715107857365,-1204.24,0.00019452,2]
[326557231,1715107857375,-500.0,0.00019452,2]
[326557232,1715107857385,-1719.43,0.00019452,2]
[326557233,1715107857395,-500.0,0.00019452,2]
[326557234,1715107857406,-500.0,0.00019452,2]
[326557235,1715107857416,-706.86,0.00019452,2]
[326557236,1715107857426,-500.0,0.00019452,2]
[326557237,1715107857436,-500.0,0.00019452,2]
[326557238,1715107857447,-1302.39,0.00019452,2]
[326557239,1715107857458,-500.0,0.00019452,2]
[326557240,1715107857468,-500.0,0.00019452,2]
[326557241,1715107857478,-1655.0,0.00019452,2]
[326557242,1715107857488,-751.44,0.00019452,2]
[326557243,1715107857497,-1493.99,0.00019452,2]
[326557244,1715107857508,-500.0,0.00019452,2]
[326557245,1715107857518,-1840.96,0.00019452,2]
[326557246,1715107857528,-2424.85,0.00019452,2]
[326557247,1715107857537,-500.0,0.00019452,2]
[326557248,1715107857547,-500.0,0.00019452,2]
[326557249,1715107857557,-4136.31,0.00019452,2]
[326557250,1715107857567,-500.0,0.00019452,2]
[326557251,1715107857577,-500.0,0.00019452,2]
[326557252,1715107857587,-554.3,0.00019452,2]
[326557253,1715107857597,-1170.11,0.00019452,2]
[326557254,1715107857607,-500.0,0.00019452,2]
[326557255,1715107857617,-500.0,0.00019452,2]
[326557256,1715107857627,-1306.82,0.00019452,2]
[326557257,1715107857637,-1586.87,0.00019452,2]
[326557258,1715107857647,-500.0,0.00019452,2]
[326557259,1715107857657,-291.13569685,0.00019452,2]
[326557260,1715107857668,-500.0,0.00019452,2]
[326557261,1715107857678,-726.86,0.00019452,2]
[326557262,1715107857688,-1385.35,0.00019452,2]
[326557263,1715107857699,-21525.12,0.00019452,2]
[326557264,1715107857711,-5083.39,0.00019452,2]
[326557265,1715107857721,-1219.77,0.00019452,2]
[326557266,1715107857732,-519.18,0.00019452,2]
[326557267,1715107857741,-500.0,0.00019452,2]
[326557268,1715107857752,-1503.18,0.00019452,2]
[326557269,1715107857762,-500.0,0.00019452,2]
[326557270,1715107857773,-1987.85,0.00019452,2]
[326557271,1715107857783,-2157.42,0.00019452,2]
[326557272,1715107857794,-1138.85,0.00019452,2]
[326557273,1715107857803,-500.0,0.00019452,2]
[326557274,1715107857813,-500.0,0.00019452,2]
[326557275,1715107857824,-15933.75,0.00019452,2]
[326557276,1715107857834,-2591.15,0.00019452,2]
[326557277,1715107857844,-1282.53,0.00019452,2]
[326557278,1715107857853,-515.47,0.00019452,2]
[326557279,1715107857865,-996.27,0.00019452,2]
[326557280,1715107857874,-767.08,0.00019452,2]
[326557281,1715107857885,-500.0,0.00019452,2]
[326557282,1715107857895,-2470.26,0.00019452,2]
[326557283,1715107857905,-500.0,0.00019452,2]
[326557284,1715107857915,-500.0,0.00019452,2]
[326557285,1715107857925,-670.44,0.00019452,2]
[326557286,1715107857936,-936.95,0.00019452,2]
[326557287,1715107857945,-3030.84,0.00019452,2]
[326557288,1715107857956,-1040.84,0.00019452,2]
[326557289,1715107857966,-500.0,0.00019452,2]
[326557290,1715107857976,-500.0,0.00019452,2]
[326557291,1715107857986,-2954.79,0.00019452,2]
[326557292,1715107857996,-1143.22,0.00019452,2]
[326557293,1715107858005,-653.79,0.00019452,2]
[326557294,1715107858016,-1473.42,0.00019452,2]
[326557295,1715107858025,-1157.62,0.00019452,2]
[326557296,1715107858035,-842.77,0.00019452,2]
[326557297,1715107858045,-1578.18,0.00019452,2]
[326557298,1715107858056,-401.5,0.00019452,2]
[326557299,1715107858066,-594.41,0.00019452,2]
[326557300,1715107858075,-3479.91,0.00019452,2]
[326557301,1715107858086,-500.0,0.00019452,2]
[326557302,1715107858096,-500.0,0.00019452,2]
[326557303,1715107858107,-500.0,0.00019452,2]
[326557304,1715107858117,-500.0,0.00019452,2]
[326557305,1715107858127,-688.23,0.00019452,2]
[326557306,1715107858137,-1747.41,0.00019452,2]
[326557307,1715107858147,-2795.3,0.00019452,2]
[326557308,1715107858158,-151.0,0.00019452,2]
[326557309,1715107858168,-3713.63,0.00019452,2]
[326557310,1715107858177,-500.0,0.00019452,2]
[326557311,1715107858187,-1900.03,0.00019452,2]
[326557312,1715107858197,-1227.91,0.00019452,2]
[326557313,1715107858208,-500.0,0.00019452,2]
[326557314,1715107858219,-2061.47,0.00019452,2]
[326557315,1715107858232,-678.47,0.00019452,2]
[326557316,1715107858243,-500.0,0.00019452,2]
[326557317,1715107858253,-5074.19,0.00019452,2]
[326557318,1715107858264,-640.94908971,0.00019452,2]
[326557319,1715107858274,-658.73,0.00019452,2]
[326557320,1715107858284,-806.18,0.00019452,2]
[326557321,1715107858294,-500.0,0.00019452,2]
[326557322,1715107858307,-1563.75,0.00019452,2]
[326557323,1715107858318,-734.42,0.00019452,2]
[326557324,1715107858328,-1482.79,0.00019452,2]
[326557325,1715107858338,-500.0,0.00019452,2]
[326557326,1715107858347,-500.0,0.00019452,2]
[326557327,1715107858357,-3081.82,0.00019452,2]
[326557328,1715107858367,-500.0,0.00019452,2]
[326557329,1715107858379,-500.0,0.00019452,2]
[326557330,1715107858389,-500.0,0.00019452,2]
[326557331,1715107858398,-1188.45,0.00019452,2]
[326557332,1715107858408,-500.0,0.00019452,2]
[326557333,1715107858418,-500.0,0.00019452,2]
[326557334,1715107858428,-500.0,0.00019452,2]
[326557335,1715107858438,-2066.13,0.00019452,2]
[326557336,1715107858450,-2670.55,0.00019452,2]
[326557337,1715107858461,-500.0,0.00019452,2]
[326557338,1715107858471,-1051.45,0.00019452,2]
[326557339,1715107858481,-500.0,0.00019452,2]
[326557340,1715107858491,-2877.54,0.00019452,2]
[326557341,1715107858501,-500.0,0.00019452,2]
[326557342,1715107858510,-1537.24,0.00019452,2]
[326557343,1715107858520,-1947.92,0.00019452,2]
[326557344,1715107858531,-1122.36,0.00019452,2]
[326557345,1715107858540,-917.74,0.00019452,2]
[326557346,1715107858550,-1678.87,0.00019452,2]
[326557347,1715107858560,-675.36,0.00019452,2]
[326557348,1715107858571,-571.46,0.00019452,2]
[326557349,1715107858581,-858.91,0.00019452,2]
[326557350,1715107858591,-500.0,0.00019452,2]
[326557351,1715107858601,-1888.44,0.00019452,2]
[326557352,1715107858611,-975.96,0.00019452,2]
[326557353,1715107858622,-500.0,0.00019452,2]
[326557354,1715107858632,-867.17,0.00019452,2]
[326557355,1715107858642,-2166.55,0.00019452,2]
[326557356,1715107858652,-620.28,0.00019452,2]
[326557357,1715107858661,-1248.84,0.00019452,2]
[326557358,1715107858671,-621.39,0.00019452,2]
[326557359,1715107858681,-1995.68,0.00019452,2]
[326557360,1715107858691,-10332.33,0.00019452,2]
[326557361,1715107858700,-500.0,0.00019452,2]
[326557362,1715107858711,-1379.77,0.00019452,2]
[326557363,1715107858721,-525.19,0.00019452,2]
[326557364,1715107858730,-500.0,0.00019452,2]
[326557365,1715107858740,-770.61,0.00019452,2]
[326557366,1715107858750,-664.27,0.00019452,2]
[326557367,1715107858760,-1536.98,0.00019452,2]
[326557368,1715107858770,-500.0,0.00019452,2]
[326557369,1715107858780,-500.0,0.00019452,2]
[326557370,1715107858790,-552.67,0.00019452,2]
[326557371,1715107858800,-500.0,0.00019452,2]
[326557372,1715107858811,-1393.67,0.00019452,2]
[326557373,1715107858823,-3480.74,0.00019452,2]
[326557374,1715107858833,-536.06,0.00019452,2]
[326557375,1715107858843,-500.0,0.00019452,2]
[326557376,1715107858854,-500.0,0.00019452,2]
[326557377,1715107858864,-554.67,0.00019452,2]
[326557378,1715107858875,-500.0,0.00019452,2]
[326557379,1715107858885,-4186.38,0.00019452,2]
[326557380,1715107858896,-1051.22,0.00019452,2]
[326557381,1715107858906,-835.5,0.00019452,2]
[326557382,1715107858916,-714.21,0.00019452,2]
[326557383,1715107858925,-500.0,0.00019452,2]
[326557384,1715107858936,-500.0,0.00019452,2]
[326557385,1715107858946,-5509.74,0.00019452,2]
[326557386,1715107858957,-1283.45,0.00019452,2]
[326557387,1715107858967,-1701.6,0.00019452,2]
[326557388,1715107858977,-212.08534673,0.00019452,2]
[326557389,1715107858987,-500.0,0.00019452,2]
[326557390,1715107858998,-561.48,0.00019452,2]
[326557391,1715107859007,-1303.46,0.00019452,2]
[326557392,1715107859017,-500.0,0.00019452,2]
[326557393,1715107859028,-500.0,0.00019452,2]
[326557394,1715107859038,-2487.03,0.00019452,2]
[326557395,1715107859048,-1482.24,0.00019452,2]
[326557396,1715107859058,-500.0,0.00019452,2]
[326557397,1715107859068,-5901.28,0.00019452,2]
[326557398,1715107859078,-500.0,0.00019452,2]
[326557399,1715107859088,-2969.38,0.00019452,2]
[326557400,1715107859098,-1887.75,0.00019452,2]
[326557401,1715107859108,-981.39,0.00019452,2]
[326557402,1715107859118,-500.0,0.00019452,2]
[326557403,1715107859128,-500.0,0.00019452,2]
[326557404,1715107859138,-500.0,0.00019452,2]
[326557405,1715107859148,-711.32,0.00019452,2]
[326557406,1715107859158,-2389.29,0.00019452,2]
[326557407,1715107859168,-500.0,0.00019452,2]
[326557408,1715107859177,-1109.81,0.00019452,2]
[326557409,1715107859187,-500.0,0.00019452,2]
[326557410,1715107859197,-813.8,0.00019452,2]
[326557411,1715107859208,-1479.88,0.00019452,2]